Cogmind - Beta 13 @@@ ROGUE MODE // 2024.04.23 @ 11:27:06 Player: sick0r Result: Destroyed by KR-64L(R) with Subdweller Machine Gun Performance ------------- Evolutions (0) 0 Regions Visited (3) 600 Robots Destroyed (44) 220 Value Destroyed (849) 849 Prototype IDs (0) 0 Alien Tech Used (0) 0 Bonus (207) 207 TOTAL SCORE: 1876 Bonus ------- Follower Combat Kills 240 Friendly Fire -33 Cogmind --------- Core Integrity 0/250 Matter 265/300 Energy 247/250 System Corruption 0% Temperature Cool (0) Movement Rolling (140) Ox4 Location -10/Subcaves Parts ------- > --- POWER (1) -------- Ion Engine > --- PROPULSION (2) --- Wheel Wheel > --- UTILITY (2) ------ Huge Storage Unit > --- WEAPON (2) ------- Beam Rifle Rocket Launcher > --- INVENTORY (25) --- Improved Ion Engine Light Nuclear Core Light Nuclear Core Subdweller Monowheel Improved Heat Sink Humpback Large Matter Pod (150) Signal Interpreter Targeting Computer Hardened Light Armor Plating Hardened Light Armor Plating Hardened Light Armor Plating Hacking Suite Bomb Drone Bay Subdweller Machine Gun Barrage Gun Rocket Launcher Rocket Launcher Datajack Ripper Signal Generator Peak State ------------ > --- POWER ------------ Improved Ion Engine > --- PROPULSION ------- Compact Wheel Compact Wheel > --- UTILITY ---------- Huge Storage Unit Hardened Light Armor Plating > --- WEAPON ----------- Beam Rifle Particle Gun > --- INVENTORY -------- Ion Engine Light Nuclear Core Light Nuclear Core Wheel Wheel Improved Heat Sink High-capacity Storage Unit High-capacity Battery Large Matter Pod Signal Interpreter Targeting Computer Light Armor Plating Hardened Light Armor Plating Hardened Light Armor Plating Hardened Light Armor Plating Hacking Suite Bomb Drone Bay Rocket Launcher Rocket Launcher Rocket Launcher Rocket Launcher Datajack Signal Generator [Rating: 16] Favorites ----------- Power Ion Engine Engine Ion Engine Propulsion Compact Wheel Treads Light Treads Leg Aluminum Leg Wheel Compact Wheel Utility Hardened Light Armor Plating Storage Huge Storage Unit Protection Hardened Light Armor Plating Weapon Assault Rifle Energy Gun Medium Laser Ballistic Gun Assault Rifle Launcher Rocket Launcher Special Melee Weapon Datajack Build | -11 -10 -10 -10 ------- Run | Yrd Mat Min Sub Slots Evolved . | . . . . Power . | . . . . Propulsion . | . . . . Utility . | . . . . Weapon . | . . . . Parts Attached 37 | 8 19 2 8 Power 6 | 1 3 1 1 Engine 6 | 1 3 1 1 Core . | . . . . Reactor . | . . . . Propulsion 10 | 4 4 . 2 Treads 3 | 1 2 . . Leg 2 | 2 . . . Wheel 5 | 1 2 . 2 Hover . | . . . . Flight . | . . . . Utility 4 | 1 2 . 1 Device . | . . . . Storage 2 | 1 1 . . Processor . | . . . . Hackware . | . . . . Protection 2 | . 1 . 1 Artifact . | . . . . Weapon 17 | 2 10 1 4 Energy Gun 4 | . 2 1 1 Energy Cannon . | . . . . Ballistic Gun 6 | 2 4 . . Ballistic Cannon . | . . . . Launcher 5 | . 3 . 2 Special Weapon . | . . . . Impact Weapon . | . . . . Slashing Weapon . | . . . . Piercing Weapon . | . . . . Special Melee Weapon 2 | . 1 . 1 Unidentified Prototypes . | . . . . Parts Lost 8 | . 1 . 7 Power 1 | . 1 . . Propulsion 2 | . . . 2 Utility 2 | . . . 2 Weapon 3 | . . . 3 Highest Loss Streak 3 | . 1 . 3 To Critical Strikes . | . . . . Average Slot Usage (%) 99 | . 99 100 99 Engine 14 | . 14 14 14 Leg 6 | . 11 . . Wheel 21 | . 16 28 27 Storage 14 | . 14 14 14 Protection 13 | . 13 14 13 Energy Gun 13 | . 10 14 22 Ballistic Gun 13 | . 16 14 2 Naked Turns . | . . . . Heaviest Build 98 | 14 94 97 98 Greatest Support 32 | 20 32 32 32 Greatest Overweight (x) 4 | 1 2 3 4 Average Overweight (x) 1 | . 1 2 3 Largest Inventory Capacity 25 | 8 25 25 25 Average Capacity 21 | 6 18 25 25 Most Carried 25 | 6 22 25 25 Average Carried 17 | 4 13 23 24 Final Capacity 25 | 8 25 25 25 Final Carried 25 | 6 21 25 23 Class Distribution -------------------- 100% | Mutant Dominant Class ---------------- Mutant | -10/Materials Mutant | -10/Mines Mutant | -10/Subcaves Resources | -11 -10 -10 -10 ----------- Run | Yrd Mat Min Sub Matter Collected 1333 | 185 741 222 185 Remotely . | . . . . Salvage Created 1090 | . 796 164 130 Parts 82 | . 64 14 4 Haulers Intercepted 1 | . 1 . . Recyclers Shooed 1 | . 1 . . Parts Field Recycled . | . . . . Retrieved Matter . | . . . . Parts Self-Destructed . | . . . . Prevented . | . . . . Kills | -11 -10 -10 -10 ------- Run | Yrd Mat Min Sub Combat Hostiles Destroyed 26 | . 15 5 6 Guns 20 | . 13 5 2 AOE 6 | . 2 . 4 Classes Destroyed 10 | . 9 . 1 Worker 6 | . 4 2 . Builder 3 | . 3 . . Tunneler 1 | . 1 . . Hauler 1 | . 1 . . Recycler 2 | . 2 . . Operator 2 | . 2 . . Watcher 3 | . 3 . . Swarmer 9 | . 6 3 . Grunt 11 | . 9 2 . Subdweller 6 | . . . 6 Best Kill Streak 7 | . 7 5 4 Combat Bots Only 5 | . 5 3 4 Max Kills in Single Turn 3 | . 3 1 2 Gunslinging . | . . . . Exploded 2 | . 1 . 2 Melee . | . . . . Uniques/NPCs Destroyed . | . . . . Combat | -11 -10 -10 -10 -------- Run | Yrd Mat Min Sub Hostile Shots Fired 120 | . 75 15 30 Missed 30 | . 17 4 9 Damage Taken 1421 | . 566 127 728 Core 256 | . 113 12 131 Absorbed by Shields . | . . . . Regen/Repaired (Parts) 125 | . 125 . . Core Remaining (%) 100 | 100 . . . Volleys Fired 104 | . 63 18 23 Largest 2 | . 2 2 2 Hottest 121 | . 70 70 121 Shots Fired 205 | . 124 35 46 Gun 188 | . 119 35 34 Cannon . | . . . . Launcher 17 | . 5 . 12 Special . | . . . . Kinetic 132 | . 108 18 6 Thermal 56 | . 11 17 28 Explosive 17 | . 5 . 12 Electromagnetic . | . . . . Robot Hit Streak 12 | . 12 6 9 Robot Miss Streak 6 | . 6 2 2 Penetration Max . | . . . . Secondary Targets 4 | . 4 . . Max Gunslinging Chain 1 | . 1 . . Shots Hit Robots 121 | . 67 21 33 Core Hits 61 | . 40 9 12 Critical Kills . | . . . . Critical Parts Destroyed 1 | . 1 . . Critical Strikes 6 | . 2 3 1 Burn 5 | . 1 3 1 Destroy 1 | . 1 . . Melee Attacks . | . . . . Impact . | . . . . Slashing . | . . . . Piercing . | . . . . Sneak Attacks . | . . . . Combat Hostiles . | . . . . Follow-up Attacks . | . . . . Damage Inflicted 2392 | . 1200 266 926 Guns 1435 | . 878 266 291 Cannons . | . . . . Explosions 957 | . 322 . 635 Melee . | . . . . Ramming . | . . . . Kinetic 940 | . 753 128 59 Thermal 495 | . 125 138 232 Explosive 957 | . 322 . 635 Electromagnetic . | . . . . Impact . | . . . . Slashing . | . . . . Piercing . | . . . . Highest Corruption . | . . . . Average Corruption . | . . . . Corruption Purged . | . . . . Corruption Blocked . | . . . . Overload Shots . | . . . . Overflow Damage 20 | . 18 . 2 Projectiles . | . . . . Explosions 20 | . 18 . 2 Melee . | . . . . Knockbacks . | . . . . Impact . | . . . . Kinetic . | . . . . Secondary . | . . . . Self-Inflicted Damage 83 | . . . 83 Shots 4 | . . . 4 Rammed . | . . . . Targets Rammed . | . . . . Kicked . | . . . . Crushed . | . . . . Highest Temperature 238 | . 238 126 42 Average Temperature 47 | . 59 39 17 Received Heat Transfer 348 | . 177 48 123 Siege Activations . | . . . . Robots Corrupted . | . . . . Combat Hostiles . | . . . . Parts Fried . | . . . . Impact Corruptions . | . . . . Robots Melted . | . . . . Combat Hostiles . | . . . . Parts Melted 4 | . 1 1 2 Heat Transferred 1739 | . 444 629 666 Parts Sabotaged . | . . . . Parts Stolen . | . . . . Parts Stripped . | . . . . Power Chain Reactions . | . . . . Alert | -11 -10 -10 -10 ------- Run | Yrd Mat Min Sub Peak Influence 413 | . 413 187 . Initial 4 | . . 4 . Average 128 | . 152 83 . Maximum Alert Level 2 | . 2 . . Low Security (%) 75 | 100 63 100 . Level 1 24 | . 35 . . Level 2 . | . . . . Level 3 . | . . . . Level 4 . | . . . . Level 5 . | . . . . High Security . | . . . . Max Security . | . . . . Squads Dispatched 4 | . 3 1 . Investigation . | . . . . Extermination . | . . . . Reinforcement 3 | . 3 . . Assault 1 | . . 1 . Garrison . | . . . . Intercept . | . . . . Searches Triggered . | . . . . Construction Impeded . | . . . . Haulers Reinforced . | . . . . Active Scanning Responses . | . . . . Cargo Convoy Interrupts . | . . . . Stealth | -11 -10 -10 -10 --------- Run | Yrd Mat Min Sub Distress Signals 2 | . 2 . . Communications Jammed . | . . . . Distress Signals . | . . . . Times Spotted 47 | . 25 11 11 Peak Tracking Total 4 | . 3 4 3 Tactical Retreats . | . . . . Traps | -11 -10 -10 -10 ------- Run | Yrd Mat Min Sub Traps Triggered 1 | . . . 1 Indirectly . | . . . . Trap Hack Attempts 9 | . . . 9 Triggered . | . . . . Disarmed . | . . . . Reprogrammed 2 | . . . 2 Reused . | . . . . Traps Extracted . | . . . . Installed . | . . . . Triggered . | . . . . Machines | -11 -10 -10 -10 ---------- Run | Yrd Mat Min Sub Machines Disabled 1 | . 1 . . Max in Single Turn 1 | . 1 . . Machines Repaired . | . . . . Machines Dismantled . | . . . . Machines Sabotaged . | . . . . Overloaded Fab Kills . | . . . . Hacking | -11 -10 -10 -10 --------- Run | Yrd Mat Min Sub Machines Accessed 8 | . 7 1 . Terminals 4 | . 4 . . Fabricators . | . . . . Repair Stations 1 | . 1 . . Recycling Units 2 | . 2 . . Scanalyzers . | . . . . Garrison Access . | . . . . Total Hacks 21 | . 20 1 . Successful 12 | . 11 1 . Failed 9 | . 9 . . Catastrophic 1 | . 1 . . Database Lockouts . | . . . . Manual 5 | . 5 . . Terminals 11 | . 11 . . Fabricators . | . . . . Repair Stations 6 | . 6 . . Recycling Units 3 | . 3 . . Scanalyzers . | . . . . Garrison Access . | . . . . Terminal Hacks 4 | . 3 1 . Open Door 1 | . . 1 . Unreport Threat 2 | . 2 . . Locate Traps 1 | . 1 . . Fabricator Hacks . | . . . . Repair Station Hacks 5 | . 5 . . Scan Component 3 | . 3 . . Repair 2 | . 2 . . Recycling Unit Hacks 3 | . 3 . . Report Inventory 2 | . 2 . . Retrieve Components 1 | . 1 . . Scanalyzer . | . . . . Garrison Access Hacks . | . . . . Unauthorized Hacks . | . . . . Terminals . | . . . . Fabricators . | . . . . Repair Stations . | . . . . Recycling Units . | . . . . Scanalyzers . | . . . . Garrison Access . | . . . . Data Cores Recovered . | . . . . Used . | . . . . Hacking Detections 5 | . 5 . . Full Trace Events . | . . . . Feedback Events . | . . . . Feedback Blocked . | . . . . Robot Schematics Acquired . | . . . . Robots Built . | . . . . Authchips . | . . . . Time . | . . . . Total Robot Build Rating . | . . . . Part Schematics Acquired . | . . . . Parts Built . | . . . . Authchips . | . . . . Time . | . . . . Total Part Build Rating . | . . . . Parts Repaired 2 | . 2 . . Time 74 | . 74 . . Parts Recycled . | . . . . Recycled Matter . | . . . . Retrieved Matter . | . . . . Retrieved Components 4 | . 4 . . Parts Scanalyzed . | . . . . Part Schematics Acquired . | . . . . Parts Damaged . | . . . . Bothacking | -11 -10 -10 -10 ------------ Run | Yrd Mat Min Sub Used RIF Installer . | . . . . Robots Hacked . | . . . . Non-combat . | . . . . Combat . | . . . . Robot Hacks Applied . | . . . . Relay Couplers Released . | . . . . Fabnet Peak Effective % . | . . . . Robots Rewired . | . . . . Allies Hacked . | . . . . Hacks Repelled . | . . . . Allies | -11 -10 -10 -10 -------- Run | Yrd Mat Min Sub Total Allies 4 | . . 4 . Largest Group 4 | . . 4 3 Highest-Rated Group 71 | . . 71 63 Highest-Rated Ally 31 | . . 31 31 Total Orders 2 | . . . 2 ROAM 1 | . . . 1 FOLLOW 1 | . . . 1 Ally Attacks 43 | . . 15 28 Total Damage 613 | . . 198 415 Kills 8 | . . 4 4 Allies Corrupted . | . . . . Allies Melted . | . . . . Intel | -11 -10 -10 -10 ------- Run | Yrd Mat Min Sub Robot Analysis Total . | . . . . Derelict Logs Recovered 4 | . . 1 3 Drone Launches . | . . . . Drone Recoveries . | . . . . Exploration | -11 -10 -10 -10 ------------- Run | Yrd Mat Min Sub Turns Passed 3245 | 55 1739 793 658 Spaces Moved 2003 | 38 1054 523 388 Core 11 | 11 . . . Treads 1 | 1 . . . Legs 369 | 15 354 . . Wheels 1622 | 11 700 523 388 Hover . | . . . . Flight . | . . . . Fastest Speed 50 | 50 120 130 130 Average Speed 131 | 96 126 135 143 Slowest Speed 160 | 160 130 145 145 Overloaded Moves . | . . . . Propulsion Burnouts . | . . . . Robots Hopped . | . . . . Cave-ins Triggered . | . . . . Exploration Rate (%) 54 | 4 96 94 22 Regions Visited 3 Branch Regions 2 Pre-discovered Areas 2 | . . . 2 Known Exits Taken . | . . . . Unknown Exits Taken 3 | 1 1 1 . Scrap Searched 3 | . . 1 2 Spaces Dug . | . . . . Terrain Destroyed 86 | . 35 . 51 Melee . | . . . . Projectile . | . . . . AOE 86 | . 35 . 51 Terrain Rammed . | . . . . Walls Destroyed . | . . . . Machines Disabled . | . . . . Actions | -11 -10 -10 -10 --------- Run | Yrd Mat Min Sub Total 2403 | 54 1331 574 444 Wait 194 | . 164 21 9 Move 2000 | 37 1053 522 388 Hop . | . . . . Pick Up 44 | 9 24 6 5 Fast Attach 6 | 3 2 1 . Attach 13 | 3 4 . 6 Detach . | . . . . Swap 18 | 2 13 1 2 Drop 15 | . 8 5 2 Fire 104 | . 63 18 23 Melee . | . . . . Ram . | . . . . Kick . | . . . . Crush . | . . . . Escape Stasis . | . . . . Rewire . | . . . . Trap 9 | . . . 9 Miscellaneous . | . . . . Route ------- -11/Scrapyard -10/Materials (discovered 5 exits: [*Mat x3] / *Min x2) -10/Mines (discovered 3 exits: [*Mat x2] / [*Sub]) -10/Subcaves (discovered 1 exit: [*Mat]) History --------- Turn | Location | Event 15 | -11/Scrapyard | Discovered new exit (range 15) 56 | -11/Scrapyard | Entered Materials 261 | -10/Materials | Discovered new exit (range 3) 305 | -10/Materials | Build established: Mutant 500 | -10/Materials | Discovered new exit (range 15) 714 | -10/Materials | Repaired Broken Assault Rifle 739 | -10/Materials | Discovered new exit (range 12) 1205 | -10/Materials | Discovered new exit (range 7) 1269 | -10/Materials | Discovered new exit (range 13) 1418 | -10/Materials | Repaired Lgt. Nuclear Core 1795 | -10/Materials | Entered Mines 1829 | -10/Mines | Discovered new exit (range 12) 2008 | -10/Mines | Assisted by bots powering up and referring to "LRC-V3" 2062 | -10/Mines | Discovered new exit (range 6) 2079 | -10/Mines | Met a Derelict testing a Signal Generator 2087 | -10/Mines | Found Signal Generator 2233 | -10/Mines | Learned 4 Materials zone layouts 2282 | -10/Mines | Joined a pair of Derelicts in attacking an 0b10 outpost 2329 | -10/Mines | Found the Drone Emporium 2337 | -10/Mines | Found Prototype Device 2478 | -10/Mines | Discovered new exit (range 15) 2588 | -10/Mines | Entered Subcaves 2588 | -10/Subcaves | Accompanied by 3 allies 2588 | -10/Subcaves | Learned location of Storage (-8) 2609 | -10/Subcaves | Learned Materials terminal intel 2718 | -10/Subcaves | Discovered new exit (range 5) 2727 | -10/Subcaves | Core integrity fell below 50% 2731 | -10/Subcaves | Core integrity fell below 20% 3195 | -10/Subcaves | Disturbed a concealed Subdweller 3198 | -10/Subcaves | Disturbed a concealed Subdweller 3201 | -10/Subcaves | Ambushed by Subdweller buried in earth 3204 | -10/Subcaves | Disturbed a concealed Subdweller 3235 | -10/Subcaves | Lost 3 parts (1n1u1w) 3246 | -10/Subcaves | Destroyed by KR-64L(R) with Subdweller Machine Gun Last Messages --------------- 76-DDY(R) destroyed. The unstable cave ceiling collapses. Acquired 1 matter. Acquired 17 matter. Acquired Sub. Machine Gun. Searching scrap... Found Ripper. Found 14 Matter. Acquired 14 matter. Acquired Ripper. The unstable cave ceiling collapses. Searching scrap... Found Sub. Optics. Found Sub. Monowheel. Found 34 Matter. Acquired 34 matter. Acquired Sub. Monowheel. The unstable cave ceiling collapses. Lgt. Armor Plating destroyed. Destroyed Lgt. Armor Plating. Map ----- +----------------------------------------------------+ | ?????????????????????????????????????????????? | | ?????????????????????????????????????????????? | | ?????????????????????????????????????????????? | | ?????????????????????????????????????????????? | | ?????????????????????????????????????????????? | | ?????????????????????????????????????????????? | | ??????????????????????????????????#####??????? | | ?????????????????????????????????## "######## | | ???????????????????????????""??### """"" ## | | ???????????????????????????" ?## """ # | | ?????????????????? ???????" ##" "" # | | ????????????????? ??????" #"" "" | | ????????????????? ??????" " """"##"" | | ????????????????? #????"" """"""""##" | | ?????????????????" #??????? "### ### ## | | ???????????????#"" #?????????#"&# ####?### | | ???????????????#"" ####?? "?## ! ## ##?#### | | ?????????????###"" ""# ??#" ## #?? | | ????????????##"""" "# ??#" ! #?? | | ????????????# # ##""#""" ?## !# *%& #?? | | ????????????# < ! "" #???# & ##?? | | ????????????# & "###?#### # #### | | ????????????# & ###""" ## | | ????????????# * # %=#### | | ????????????# " # R #??## | | ????????????# & @ ##???## | | ????????????# & ;#?????## | | ????????????# # & ;#??????# | | ????????????## ^;#??????###### | | ????????????# # # ## #??????????## | | ????????????## # " " ##??#???????????## | | ?????????????#### # #" #???????????????? | | ???????????????#### ## #" #???????????????? | | ????????????????##"## #?##" ##???????????????? | | ?????????????????##?##"??"" ????????????????# | | ??????????????????????"??# ##??????????????? | | ??????????????????????##?"" ?????????????? | | ??????????????????????????" ?????????????# ? | | ?????????????????????????? " ?????????????# ? | | ?????????????????????????? " ????????????#? | | ??????????????????????????#"" ????????????? | | ????????????????????????????""????????????? | | ??????????????????????????????????????????# ## | | ??????????????????????????????????????????##?? | | ?????????????????????????????????????????????? | | ?????????????????????????????????????????????? | | ?????????????????????????????????????????????? | | ?????????????????????????????????????????????? | | ?????????????????????????????????????????????? | | ?????????????????????????????????????????????? | +----------------------------------------------------+ Best States ------------- Heat Dissipation 25 Energy Generation 12 Energy Capacity 265 Matter Stores 300 Matter Capacity 300 Sight Range 16 Terrain Scan Density 10 Armor Coverage 150 Evasion (%) 55 Item Schematics ----------------- None Robot Schematics ------------------ None Fabricated ------------ Nothing Alien Tech Used ----------------- None Achievements -------------- None Challenges ------------ None Game ------ Seed SpacefoldLongswordDevice Manual? 0 Play Time 00:29:13 Cumulative 35.4 hours Start 2024.04.23 @ 10:59:11 End 2024.04.23 @ 11:27:06 Sessions 1 Manual Loads 0 Difficulty Rogue Special Mode None Game No. 37 Rogue 37 Adventurer 0 Explorer 0 Win Type - Total 0 Types 0/0/0/0/0/0/0/0/0 Lore% 17 Gallery% 25 Achievement% 100 Wizard Run 0 Options --------- Layout 1 ASCII 0 Keyboard 0 Movement Mouse Keybinds 0 Fullscreen 1 Font 24/Smallcaps Map View 50x35 Zoom Use 0% Tactical HUD 0 Map Filters NONE Filters NONE Steam 1 RUN: 68bb690c-97c4-46c7-85d5-33d361481147